bitfinex/quotes_ETHUSD_20260225
["timestamp","ask_amount","ask_price","bid_price","bid_amount"]
[1772029315297,1.26531025,1975.8,1974.9,6.38941749]
[1772029316193,1.26531025,1975.8,1974.9,5.12353184]
[1772029316690,1.26531025,1975.8,1974.7,5.98581252]
[1772029316894,4.27814199,1975.7,1974.7,5.98581252]
[1772029317096,4.27814199,1975.7,1974.8,4.71982339]
[1772029317400,4.27814199,1975.6,1974.8,4.71982339]
[1772029318300,4.27127126,1975.4,1974.6,0.001]
[1772029318773,1.26563053,1975.3,1974.6,0.001]
[1772029319485,5.53008524,1975.3,1974.6,0.001]
[1772029319792,5.53008524,1975.3,1974.6,4.72082339]
[1772029320173,1.26563053,1975.3,1974.6,4.72082339]
[1772029320477,1.26563053,1975.3,1974.7,4.71982339]
[1772029320671,5.06252214,1975.5,1974.6,3.8320548]
[1772029321003,4.25766811,1975.4,1974.6,0.001]
[1772029322044,2.56498091,1974.8,1974.5,0.001]
[1772029322314,6.80813527,1974.8,1974.3,0.001]
[1772029322515,4.24315436,1974.8,1974.3,0.001]
[1772029322715,1.441,1975.0,1974.3,4.72082339]
[1772029323218,5.50227982,1975.1,1974.3,4.72082339]
[1772029323424,8.35027982,1975.1,1974.3,4.72082339]
[1772029323589,5.50227982,1975.1,1974.3,4.72082339]
[1772029323995,4.22986451,1975.0,1974.3,4.72082339]
[1772029324219,4.22986451,1975.0,1974.0,0.001]
[1772029324220,2.56498091,1974.6,1974.0,0.001]
[1772029324420,4.88202315,1974.5,1974.0,0.001]
[1772029324922,4.88202315,1974.3,1974.0,0.001]
[1772029325125,4.88202315,1974.1,1973.1,4.71982339]
[1772029325433,4.88202315,1974.1,1973.2,7.2848043]
[1772029326300,4.88202315,1974.3,1973.3,7.40415039]
[1772029326494,4.88202315,1974.3,1973.3,4.71982339]
[1772029327231,1.26633573,1974.2,1973.4,5.98667248]
[1772029327692,4.88202315,1974.1,1973.1,4.71982339]
[1772029328009,4.88202315,1973.9,1972.9,2.56498091]
[1772029328229,4.88202315,1973.9,1973.0,4.71982339]
[1772029328450,1.26633573,1974.2,1973.2,4.71982339]
[1772029328739,4.88202315,1974.1,1973.4,4.71982339]
[1772029329031,4.88202315,1974.1,1973.2,4.71982339]
[1772029329428,1.26646403,1974.0,1973.3,1.26691329]
[1772029330172,6.14848718,1974.0,1973.2,5.98675465]
[1772029330482,4.88202315,1973.9,1973.2,5.98675465]
[1772029330775,6.14848718,1974.0,1973.2,1.26693126]
[1772029330929,4.88202315,1973.9,1973.2,1.26693126]
[1772029331355,4.88202315,1973.9,1973.2,5.98675465]
[1772029331954,6.14860938,1973.9,1973.2,5.98675465]
[1772029334232,6.14842302,1974.1,1973.3,4.71982339]
[1772029336258,4.88202315,1974.0,1973.3,4.71982339]
[1772029336463,4.88202315,1974.0,1973.4,5.98667248]
[1772029336642,4.88202315,1974.4,1973.7,4.71982339]
[1772029336839,1.2661868,1974.5,1973.7,4.71982339]
[1772029337039,4.88202315,1974.7,1973.9,2.56498091]
[1772029337265,6.14804,1974.7,1974.0,4.71982339]
[1772029337463,6.14804,1974.7,1973.7,2.56498091]
[1772029337464,6.14804,1974.7,1973.8,4.71982339]
[1772029337668,4.88202315,1974.6,1973.8,4.71982339]
[1772029337962,4.105959,1974.8,1974.0,4.71982339]
[1772029338263,2.84,1974.8,1974.2,4.71982339]
[1772029338462,4.10595713,1974.8,1974.3,1.26627158]
[1772029338636,0.002,1974.4,1974.3,1.26627158]
[1772029339327,0.002,1974.4,1973.9,8.43935158]
[1772029339960,0.002,1974.4,1973.9,5.98635158]
[1772029340569,4.88402315,1974.4,1973.7,1.26660653]
[1772029340883,4.88402315,1974.4,1973.7,5.98642992]
[1772029340884,0.002,1974.4,1973.7,5.98642992]
[1772029341095,0.002,1974.4,1973.9,4.71982339]
[1772029341752,0.002,1974.4,1973.7,1.26660653]
[1772029342481,1.26820745,1974.4,1973.7,1.26660653]
[1772029343181,6.1502306,1974.4,1973.7,1.26660653]
[1772029345250,4.88202315,1974.1,1973.5,1.26678489]
[1772029347184,1.26820745,1974.4,1973.6,4.96230154]
[1772029347857,4.76804034,1974.3,1973.6,4.96230154]
[1772029348991,4.76804034,1974.3,1973.5,3.72178489]
[1772029349592,6.03436229,1974.3,1973.6,4.96230154]
[1772029351596,1.26639987,1974.1,1973.7,0.001]
[1772029351805,5.02208027,1974.2,1973.7,0.001]
[1772029352587,0.002,1974.3,1973.7,4.97045202]
[1772029352893,0.002,1974.3,1973.8,4.96945202]
[1772029353188,1.2682721,1974.3,1973.8,4.96945202]
[1772029353490,0.002,1974.3,1973.8,4.96945202]
[1772029353664,0.002,1974.3,1973.9,1.26652819]
[1772029354870,0.002,1974.3,1973.9,6.23598021]
[1772029356970,0.002,1974.3,1973.9,1.26652819]
[1772029358389,0.002,1974.3,1973.8,5.06630595]
[1772029358691,0.002,1974.3,1973.8,10.03575797]
[1772029362993,5.02408027,1974.3,1973.8,1.26659235]
[1772029364077,5.02408027,1974.3,1973.7,11.30647194]
[1772029364401,5.02408027,1974.3,1973.7,5.04764712]
[1772029364975,1.26828498,1974.3,1973.8,4.96945202]
[1772029365597,1.26828498,1974.3,1973.8,4.97045202]
[1772029365799,0.002,1974.2,1973.8,4.97045202]
[1772029366297,5.02408027,1974.2,1973.8,0.001]
[1772029367002,0.002,1974.2,1973.8,4.97045202]
[1772029369094,0.002,1974.2,1973.9,6.23598021]
[1772029370311,0.002,1974.2,1973.8,3.72954393]
[1772029370533,0.002,1974.2,1973.8,1.26754393]
[1772029371015,5.02208027,1974.1,1973.8,0.001]
[1772029371388,0.002,1974.2,1973.8,0.001]
[1772029372508,0.002,1974.3,1973.9,4.96945202]
[1772029372802,5.02408027,1974.3,1973.8,0.001]
[1772029373008,5.02408027,1974.3,1973.8,2.465]
[1772029374785,5.02408027,1974.3,1973.9,1.26652819]
[1772029375109,5.02208027,1974.2,1973.8,1.26758514]
[1772029376103,5.02208027,1974.2,1973.8,0.001]
[1772029376708,5.02208027,1974.2,1973.8,1.26758595]
[1772029377112,5.02208027,1974.2,1973.8,0.001]
[1772029377318,4.76118179,1974.1,1973.8,0.001]
[1772029378693,4.76118179,1974.1,1973.9,0.001]
[1772029380650,0.002,1974.2,1973.9,5.17343706]
[1772029381124,4.76318179,1974.2,1973.9,0.001]
[1772029383718,0.002,1974.2,1973.9,0.001]
[1772029384799,4.76318179,1974.2,1973.9,0.001]
[1772029384990,4.76318179,1974.2,1973.7,0.001]
[1772029384991,4.76118179,1974.1,1973.7,0.001]
[1772029385602,1.26646403,1974.0,1973.7,0.001]
[1772029385808,4.76118179,1973.9,1973.7,0.001]
[1772029386941,4.76118179,1973.9,1973.5,0.001]
[1772029387812,4.76118179,1973.7,1973.5,0.001]
[1772029389911,4.76118179,1973.6,1973.5,0.001]
[1772029390629,4.76118179,1973.7,1973.5,0.001]
[1772029391623,4.76118179,1973.7,1973.6,0.001]
[1772029391934,4.08160181,1973.8,1973.6,0.001]
[1772029392430,2.815,1973.8,1973.6,0.001]
[1772029392731,4.76118179,1973.9,1973.6,0.001]
[1772029392732,0.002,1974.0,1973.6,5.17343706]
[1772029394110,0.002,1974.0,1973.7,1.26665653]
[1772029394308,0.002,1974.0,1973.7,6.43909359]
[1772029394603,0.002,1974.1,1973.8,5.17243706]
[1772029396028,0.002,1974.1,1973.8,6.43901817]
[1772029396403,4.76318179,1974.1,1973.6,1.26769055]
[1772029397810,0.002,1974.1,1973.6,6.44012761]
[1772029400836,4.76318179,1974.1,1973.6,6.44012761]
[1772029404042,4.76318179,1974.1,1973.7,0.001]
[1772029404224,4.76318179,1974.1,1973.7,5.17343706]
[1772029404549,0.002,1974.0,1973.7,5.17343706]
[1772029404720,0.002,1974.0,1973.7,6.44003429]
[1772029405517,0.002,1974.1,1973.7,6.44003429]
[1772029406049,0.002,1974.3,1973.8,4.6976275]
[1772029406820,0.002,1974.3,1973.9,5.96415569]
[1772029407044,4.85722663,1974.3,1973.9,5.96415569]
[1772029407348,4.85722663,1974.3,1973.9,1.26652819]
[1772029407644,4.85722663,1974.3,1973.7,1.26765337]
[1772029408852,0.002,1974.3,1973.8,4.6976275]
[1772029411350,0.002,1974.3,1974.0,4.75693992]
[1772029413347,0.002,1974.3,1974.1,1.26639987]
[1772029415022,0.002,1974.4,1974.2,4.75693992]
[1772029415316,0.002,1974.5,1974.2,4.75693992]
[1772029415525,0.002,1974.5,1974.2,6.02322169]
[1772029416051,5.01920503,1974.5,1974.2,1.26628177]
[1772029416925,0.002,1974.3,1974.2,1.26628177]
[1772029418267,0.002,1974.3,1974.1,4.75693992]
[1772029418665,0.002,1974.5,1974.1,4.75693992]
[1772029420866,0.002,1974.5,1974.2,1.26633573]
[1772029421160,0.002,1974.5,1974.3,4.75693992]
[1772029421460,0.002,1974.5,1974.2,6.02327565]
[1772029424538,5.01920503,1974.7,1974.3,4.75693992]
[1772029425972,0.002,1974.7,1974.3,4.75693992]
[1772029426645,0.002,1974.7,1974.4,1.26620745]
[1772029426970,5.01920503,1974.7,1974.2,3.75933573]
[1772029428550,5.01920503,1974.7,1974.2,8.51627565]
[1772029428743,5.01920503,1974.7,1974.3,0.001]
[1772029429439,5.01720503,1974.6,1974.3,0.001]
[1772029429662,5.01920503,1974.6,1974.3,0.001]
[1772029432552,0.002,1974.6,1974.3,4.75793992]
[1772029432865,0.002,1974.6,1974.4,1.26620745]
[1772029433172,5.01920503,1974.6,1974.3,1.26722704]
[1772029435473,5.01920503,1974.6,1974.3,1.78088253]
[1772029435972,5.01920503,1974.6,1974.3,6.79464906]
[1772029436368,0.002,1974.6,1974.4,5.52742202]
[1772029436558,0.002,1974.7,1974.6,5.01376653]
[1772029437074,0.002,1974.7,1974.5,1.26609862]
[1772029437571,5.18730626,1974.7,1974.5,1.26609862]
[1772029437769,5.18730626,1974.7,1974.4,1.26616175]
[1772029437976,5.18730626,1974.7,1974.3,1.78092239]
[1772029438568,5.18730626,1974.7,1974.3,6.79468892]
[1772029441986,0.002,1974.7,1974.4,5.52742202]
[1772029442559,0.002,1974.7,1974.4,5.52842202]
[1772029442887,5.18730626,1974.6,1974.4,0.001]
[1772029443657,0.002,1974.9,1974.6,10.15032143]
[1772029443972,3.63902536,1975.2,1974.8,5.52742202]
[1772029444158,3.63902536,1975.2,1974.8,5.01376653]
[1772029444352,3.63902536,1975.2,1974.8,6.27971265]
[1772029444884,3.63902536,1975.2,1974.8,6.79336814]
[1772029445094,3.78985973,1975.4,1975.1,0.51365549]
[1772029445591,2.069,1975.5,1975.1,5.52742202]
[1772029445759,2.069,1975.5,1975.3,0.51365549]
[1772029445960,3.78985973,1975.6,1975.3,0.51365549]
[1772029446197,3.78985973,1975.6,1975.2,6.27946101]
[1772029447586,3.7835353,1975.7,1975.3,5.01376653]
[1772029447896,3.7835353,1975.7,1975.2,1.26569448]
[1772029448066,3.7835353,1975.7,1975.2,6.27946101]
[1772029448392,3.7835353,1975.7,1975.3,5.52742202]
[1772029448763,0.51365549,1975.5,1975.1,6.27949729]
[1772029448967,3.78036963,1975.5,1975.1,6.27949729]
[1772029449167,3.78036963,1975.5,1975.0,7.57718535]
[1772029449371,3.78036963,1975.5,1975.1,1.26573076]
[1772029450372,3.78036963,1975.5,1975.1,6.27949729]
[1772029450993,3.78036963,1975.5,1975.1,5.01376653]
[1772029451704,3.80038845,1975.2,1974.9,5.01376653]
[1772029451872,3.80038845,1975.2,1974.8,6.27968253]
[1772029452200,3.80038845,1975.2,1974.8,6.2797105]
[1772029452796,3.80038845,1975.2,1974.5,5.06456562]
[1772029452797,3.79714028,1975.1,1974.6,8.79579075]
[1772029452963,3.79714028,1975.1,1974.6,9.30944624]
[1772029453167,4.31079577,1975.1,1974.5,6.27990985]
[1772029453373,3.79388497,1974.9,1974.5,5.01376653]
[1772029454007,3.79066009,1975.1,1974.6,5.01376653]
[1772029454171,3.79066009,1975.1,1974.6,5.52742202]
[1772029454493,5.05643203,1975.1,1974.6,1.77970944]
[1772029454706,5.05643203,1975.1,1974.6,6.27982048]
[1772029454875,5.05643203,1975.1,1974.6,5.01376653]
[1772029455897,5.05643203,1975.1,1974.6,5.01476653]
[1772029456070,1.26577194,1975.1,1974.6,5.01476653]
[1772029456271,3.78417308,1975.0,1974.6,5.01476653]
[1772029457094,3.78417308,1975.0,1974.6,0.001]
[1772029457272,5.04999646,1975.0,1974.6,0.001]
[1772029457903,3.78417308,1975.0,1974.6,0.001]
[1772029460201,3.78417308,1975.0,1974.7,0.51365549]
[1772029460503,5.03691541,1975.2,1974.7,5.52742202]
[1772029460806,3.77119476,1975.3,1974.8,0.51365549]
[1772029460976,3.77119476,1975.3,1974.9,5.01376653]
[1772029461176,3.76797782,1975.2,1974.8,6.27965943]
[1772029462304,4.28163331,1975.2,1974.6,8.80184573]
[1772029462502,3.76475575,1975.0,1974.6,1.2670792]
[1772029463203,3.76475575,1975.0,1974.6,0.001]
[1772029463890,3.76150214,1974.9,1974.6,0.001]
[1772029464908,4.2719034,1974.7,1974.5,0.001]
[1772029465106,3.75824791,1974.7,1974.5,0.001]
[1772029466491,3.75265987,1975.1,1974.6,5.35104974]
[1772029466695,3.75265987,1975.1,1974.6,4.83739425]
[1772029466876,1.26573427,1975.2,1974.5,0.001]
[1772029466877,3.74940571,1974.9,1974.5,0.001]
[1772029467412,5.01530564,1974.9,1974.5,0.001]
[1772029467623,3.74940571,1974.8,1974.5,0.001]
[1772029468525,3.7461546,1975.2,1974.6,5.35104974]
[1772029468813,3.7461546,1975.2,1974.6,4.83739425]
[1772029468983,3.7461546,1975.2,1974.6,5.35104974]
[1772029469502,5.01185342,1975.2,1974.7,6.27879783]
[1772029469696,0.002,1975.0,1974.7,6.27879783]
[1772029471014,0.002,1975.0,1974.8,5.52643823]
[1772029471399,0.002,1975.3,1974.9,6.79228963]
[1772029471602,0.002,1975.3,1975.0,5.52643823]
[1772029472287,0.002,1975.3,1975.0,5.01278274]
[1772029473719,0.002,1975.3,1975.0,6.27860521]
[1772029474314,0.002,1975.3,1975.1,5.01278274]
[1772029474891,0.002,1975.3,1975.0,1.26582247]
[1772029475516,0.002,1975.3,1974.9,8.80662485]
[1772029476614,0.002,1975.3,1975.0,5.01278274]
[1772029476808,0.002,1975.3,1975.1,5.52643823]
[1772029477315,0.002,1975.3,1975.1,5.01278274]
[1772029480217,0.002,1975.3,1975.2,5.01278274]
[1772029481519,0.002,1975.3,1975.1,1.26575853]
[1772029482521,0.002,1975.3,1975.1,6.27854127]
[1772029483045,3.70196497,1975.3,1974.9,5.01278274]
[1772029483203,4.21362046,1975.0,1974.6,3.80203341]
[1772029483528,3.69996497,1975.0,1974.6,8.81481615]
[1772029483898,3.69996497,1975.0,1974.9,0.001]
[1772029486427,5.47161883,1975.2,1974.9,0.001]
[1772029486638,3.69223778,1975.2,1974.9,0.001]
[1772029486799,0.002,1975.2,1974.9,0.001]
[1772029487929,1.26770041,1975.2,1974.9,0.001]
[1772029488127,4.95141979,1975.2,1974.9,0.001]
[1772029489634,4.19412856,1975.1,1974.9,0.001]
[1772029489808,4.19312856,1975.0,1974.7,0.001]
[1772029490008,4.94393666,1975.2,1974.7,6.27979489]
[1772029490215,4.94393666,1975.2,1974.8,5.01278274]
[1772029493273,3.66655586,1975.1,1974.8,5.01278274]
[1772029494237,4.93234432,1975.1,1974.8,5.01278274]
[1772029494930,3.66008497,1975.0,1974.7,0.001]
[1772029495672,1.26576298,1975.1,1974.7,4.71246228]
[1772029495874,4.91858823,1975.1,1974.7,4.71246228]
[1772029496082,1.26576298,1975.1,1974.7,4.71246228]
[1772029496231,3.65282525,1975.0,1974.7,4.71246228]
[1772029496562,1.26576298,1975.1,1974.7,4.71246228]
[1772029497656,8.71786003,1975.2,1974.8,4.71146228]
[1772029497850,4.92051986,1975.2,1974.9,0.001]
[1772029498050,0.002,1975.1,1974.9,0.001]
[1772029498228,0.002,1975.3,1975.0,4.71146228]
[1772029498649,3.64379429,1975.3,1975.0,4.71146228]
[1772029498862,3.64379429,1975.3,1974.9,0.001]
[1772029499061,3.63645149,1975.1,1974.9,0.001]
[1772029499566,3.63845149,1975.3,1974.9,4.71246228]
[1772029500261,3.63845149,1975.3,1975.0,4.71146228]
[1772029500262,0.002,1975.3,1975.0,4.71146228]
[1772029500479,3.6329928,1975.3,1974.9,0.001]
[1772029500766,4.40122373,1975.2,1974.9,0.001]
[1772029501951,3.6309928,1975.2,1974.9,0.001]
[1772029502335,1.26575869,1975.1,1974.9,0.001]
[1772029502531,4.88594803,1975.1,1974.9,0.001]
[1772029502959,3.61485317,1975.0,1974.9,0.001]
[1772029503162,3.61485317,1975.0,1974.8,0.001]
[1772029504438,2.782,1975.2,1974.8,4.71246228]
[1772029505157,4.04770147,1975.2,1974.8,4.71246228]
[1772029505340,2.782,1975.2,1974.8,4.71246228]
[1772029506367,6.38096359,1975.2,1974.8,4.71246228]
[1772029506870,7.64666474,1975.2,1974.8,4.71246228]
[1772029507472,3.59371085,1975.1,1974.8,0.001]
[1772029507638,4.36394178,1975.1,1974.7,0.001]
[1772029508471,3.5874597,1974.8,1974.5,0.001]
[1772029509569,4.85341679,1974.8,1974.5,0.001]
[1772029509746,1.26587081,1975.0,1974.5,0.001]
[1772029509951,4.84815477,1975.0,1974.5,0.001]
[1772029510360,4.84303726,1975.0,1974.5,0.001]
[1772029510545,1.26581127,1975.1,1974.5,4.71246228]
[1772029510744,4.84297772,1975.1,1974.6,4.71246228]
[1772029511062,4.84497772,1975.1,1974.6,4.71246228]
[1772029512073,4.84493956,1975.1,1974.6,4.71246228]
[1772029513770,3.56190171,1975.0,1974.6,4.71246228]
[1772029515675,3.56190171,1975.0,1974.6,0.001]
[1772029515870,4.8176445,1974.9,1974.6,0.001]
[1772029516064,1.26582278,1975.0,1974.6,4.71246228]
[1772029516778,4.81258193,1975.0,1974.6,4.71246228]
[1772029518250,3.53681037,1974.9,1974.6,4.71246228]
[1772029519878,4.79964896,1975.1,1974.6,5.9785401]
[1772029520054,4.79964896,1975.1,1974.7,4.71146228]
[1772029520555,3.53385989,1975.1,1974.7,4.71146228]
[1772029520767,0.002,1975.1,1974.7,4.71146228]
[1772029521384,3.52210563,1975.0,1974.6,0.001]
[1772029521891,3.52210563,1974.8,1974.4,0.001]
[1772029522382,3.5172341,1974.7,1974.4,0.001]
[1772029523280,3.51243784,1974.8,1974.4,0.001]
[1772029523480,4.77839567,1974.8,1974.4,0.001]
[1772029524072,4.77839567,1974.8,1974.7,0.001]
[1772029524272,4.77839567,1974.8,1974.4,0.001]
[1772029524507,4.77839567,1974.8,1974.5,0.001]
[1772029526587,4.26707572,1974.7,1974.3,0.001]
[1772029526878,3.49684479,1974.7,1974.3,4.88227864]
[1772029527274,1.26595783,1974.8,1974.3,4.88227864]
[1772029529985,3.47688867,1974.8,1974.4,4.63302839]
[1772029530390,4.2471196,1974.6,1974.3,0.001]
[1772029530594,3.47688867,1974.5,1974.3,0.001]
[1772029530770,7.0391196,1974.6,1974.3,0.001]
[1772029530970,2.792,1974.6,1974.3,4.63402839]
[1772029532061,1.26599635,1974.8,1974.3,4.63402839]
[1772029534460,4.05788862,1974.9,1974.5,4.63302839]
[1772029534991,0.002,1975.1,1974.5,5.40325932]
[1772029535162,1.26777993,1975.1,1974.5,5.40325932]
[1772029535482,1.26777993,1975.1,1974.5,4.63302839]
[1772029536170,0.002,1975.0,1974.5,4.63302839]
[1772029536698,0.002,1975.0,1974.7,4.63302839]
[1772029538566,0.002,1975.0,1974.9,4.63302839]
[1772029540402,0.002,1975.0,1974.7,4.63302839]
[1772029540707,0.002,1975.0,1974.8,4.63302839]
[1772029542869,0.002,1975.0,1974.6,8.42905986]
[1772029543069,0.002,1975.0,1974.7,4.63302839]
[1772029545482,5.72996225,1975.0,1974.4,2.534]
[1772029545682,4.95973132,1975.0,1974.4,8.43323383]
[1772029545882,4.95973132,1975.0,1974.5,4.63302839]
[1772029546975,4.95773132,1974.8,1974.4,0.001]
[1772029547168,5.72796225,1974.8,1974.4,0.001]
[1772029547974,4.95773132,1974.8,1974.6,0.001]
[1772029548177,1.26588688,1974.9,1974.6,0.001]
[1772029548702,6.2236182,1974.9,1974.6,0.001]
[1772029549621,1.26588688,1974.9,1974.6,0.001]
[1772029549778,4.95773132,1974.8,1974.6,0.001]
[1772029550286,4.95773132,1974.8,1974.4,0.001]
[1772029550597,4.95773132,1974.8,1974.4,4.63402839]
[1772029550777,4.95773132,1974.8,1974.4,0.001]
[1772029550979,5.72796225,1974.8,1974.4,0.001]
[1772029551516,4.95773132,1974.8,1974.4,4.63402839]
[1772029551810,1.26601509,1974.7,1974.4,4.63402839]
[1772029553876,1.26599831,1974.8,1974.4,5.14773873]
[1772029554276,1.26599831,1974.8,1974.4,4.63402839]
[1772029554472,6.22365319,1974.9,1974.4,4.63402839]
[1772029556101,4.9315885,1974.8,1974.4,4.63402839]
[1772029558507,1.26601509,1974.7,1974.4,4.63402839]
[1772029559876,1.26601509,1974.7,1974.4,0.001]
[1772029559877,6.19760359,1974.7,1974.4,0.001]
[1772029560072,6.19760359,1974.7,1974.4,4.7252369]
[1772029560510,6.19760359,1974.7,1974.5,0.001]
[1772029560811,6.19960359,1974.7,1974.5,0.001]
[1772029561225,1.26801509,1974.7,1974.3,4.7242369]
[1772029561379,1.26801509,1974.7,1974.2,0.001]
[1772029561380,4.9315885,1974.6,1974.2,4.7252369]
[1772029561873,4.9315885,1974.6,1974.2,0.001]
[1772029562078,4.9315885,1974.4,1974.2,0.001]
[1772029562982,6.19782956,1974.4,1974.2,0.001]
[1772029563682,0.002,1974.7,1974.4,4.7242369]
[1772029563916,1.26801902,1974.7,1974.4,4.7242369]
[1772029564125,0.002,1974.7,1974.4,4.7242369]
[1772029565406,0.002,1974.7,1974.4,1.26620277]
[1772029565612,0.002,1974.7,1974.5,4.7242369]
[1772029566217,4.9335885,1974.7,1974.2,0.001]
[1772029567017,4.9335885,1974.7,1974.2,3.80978512]
[1772029567900,1.2660792,1974.6,1974.2,3.80978512]
[1772029568593,6.19964273,1974.7,1974.3,3.81297622]
[1772029569827,0.002,1974.7,1974.5,3.81702782]
[1772029570537,0.002,1974.7,1974.3,5.60097543]
[1772029571200,0.002,1974.7,1974.4,3.82490625]
[1772029572099,1.26593544,1974.9,1974.6,3.82672573]
[1772029572493,6.19752394,1974.9,1974.6,3.82672573]
[1772029572799,6.19752394,1974.9,1974.4,3.82672573]
[1772029573291,5.44529884,1974.8,1974.4,0.001]
[1772029573492,0.002,1974.6,1974.4,0.001]
[1772029574088,0.002,1974.6,1974.4,3.83519253]
[1772029575518,0.002,1974.6,1974.4,4.34890287]
[1772029575720,0.002,1974.9,1974.5,4.35147539]
[1772029576016,0.002,1974.9,1974.6,4.35497192]
[1772029576216,4.9335885,1974.9,1974.6,3.84126158]
[1772029576900,4.9335885,1974.9,1974.5,0.51371034]
[1772029577089,4.9335885,1974.9,1974.4,4.3595014]
[1772029577291,4.9335885,1974.9,1974.4,3.84579106]
[1772029577612,0.002,1974.9,1974.6,4.3585014]
[1772029578387,0.002,1974.9,1974.6,5.62457005]
[1772029578592,0.002,1975.1,1974.8,4.36183586]
[1772029581918,0.002,1975.1,1974.8,3.84812552]
[1772029582925,0.002,1975.1,1974.8,4.36183586]
[1772029583230,0.002,1975.1,1974.9,3.86393798]
[1772029583594,0.002,1975.1,1974.8,4.37764832]
[1772029585418,0.002,1975.1,1974.8,3.86393798]
[1772029586915,0.002,1975.1,1974.9,0.001]
[1772029587313,0.002,1975.0,1974.9,3.88271041]
[1772029591307,0.002,1975.0,1974.9,0.001]
[1772029591718,0.002,1975.3,1975.0,3.89566441]
[1772029592059,5.06681449,1975.6,1975.2,3.92705239]
[1772029594430,9.13816509,1975.8,1975.3,4.44618423]
[1772029594738,5.06681449,1975.7,1975.3,3.93247389]
[1772029596608,9.13816509,1975.8,1975.3,3.93247389]
[1772029597421,5.06681449,1975.7,1975.2,0.5131809]
[1772029597619,5.06681449,1975.7,1975.1,1.77889727]
[1772029598811,5.06681449,1975.5,1975.1,0.5131809]
[1772029599211,5.06681449,1975.5,1974.9,2.53]
[1772029599412,5.06681449,1975.5,1975.0,0.5131809]
[1772029600237,5.06681449,1975.5,1975.1,0.5131809]
[1772029600946,6.3323529,1975.5,1975.1,0.5131809]
[1772029601451,5.06681449,1975.5,1975.1,1.26575823]
[1772029601619,5.06681449,1975.5,1975.0,1.26582278]
[1772029602345,6.33231986,1975.5,1974.9,6.987426]
[1772029602520,6.33231986,1975.5,1975.1,0.51320549]
[1772029602869,5.06681449,1975.4,1974.9,2.53]
[1772029603142,5.06681449,1975.2,1974.9,2.53]
[1772029604044,5.06681449,1975.2,1974.9,3.04320549]
[1772029604345,5.06681449,1975.2,1974.9,2.53]
[1772029604529,5.06681449,1975.2,1974.8,0.001]
[1772029605421,5.06681449,1975.0,1974.8,0.001]
[1772029605644,5.06681449,1975.5,1974.9,5.65087717]
[1772029605826,5.06681449,1975.5,1975.1,0.51320549]
[1772029606031,5.06681449,1975.5,1975.2,0.51320549]
[1772029606227,5.06681449,1975.5,1975.1,0.51320549]
[1772029607751,5.06681449,1975.5,1975.1,5.13767168]
[1772029607938,5.06881449,1975.6,1975.4,0.51320549]
[1772029608249,5.06881449,1975.6,1975.2,5.13767168]
[1772029608452,5.06881449,1975.7,1975.2,5.13767168]
[1772029608618,1.51745489,1977.0,1975.1,5.13767168]
[1772029608619,2.86136448,1976.2,1975.1,5.13767168]
[1772029608825,2.86136448,1976.2,1975.4,5.13767168]
[1772029609070,2.86136448,1976.2,1975.4,2.524]
[1772029609367,2.86136448,1976.2,1975.5,5.13767168]
[1772029609945,3.2293758,1976.0,1975.5,5.13767168]
[1772029610652,3.2293758,1976.0,1975.4,2.524]
[1772029610836,3.74243629,1976.0,1975.4,2.524]
[1772029643680,0.006,1976.9,1976.4,6.86265247]
[1772029644362,1.26439305,1977.3,1976.6,5.59775962]
[1772029644556,1.26439305,1977.3,1976.7,5.59775962]
[1772029644557,0.006,1977.1,1976.7,5.59775962]
[1772029645277,0.006,1977.0,1976.7,5.59775962]
[1772029645446,3.40420885,1977.4,1976.7,5.59775962]
[1772029645646,3.40641136,1977.4,1976.7,5.59775962]
[1772029646075,0.006,1977.3,1976.7,5.59775962]
[1772029646275,0.006,1977.5,1976.7,5.59775962]
[1772029646649,0.006,1977.5,1976.7,6.862487]
[1772029647567,0.006,1977.5,1976.7,5.59775962]
[1772029647568,3.42097775,1977.5,1976.7,5.59775962]
[1772029647773,0.006,1977.5,1976.7,6.86247985]
[1772029648165,0.006,1977.5,1976.7,6.86247713]
[1772029648953,3.42478376,1977.5,1976.7,6.86247713]
[1772029649156,4.68307019,1977.4,1976.7,5.59775962]
[1772029650755,3.43278368,1977.3,1976.7,5.59775962]
[1772029651090,0.006,1977.3,1976.7,5.59775962]
[1772029652000,1.26628643,1977.4,1976.7,5.59775962]
[1772029652282,0.006,1977.3,1976.7,5.59775962]
[1772029653275,0.006,1977.2,1976.7,5.59775962]
[1772029653475,0.006,1977.2,1976.7,6.86248345]
[1772029653859,0.002,1977.4,1976.7,6.86248345]
[1772029653860,0.002,1977.4,1976.8,5.40002168]
[1772029655389,0.002,1977.4,1976.8,6.66468599]
[1772029657570,5.81546576,1978.0,1977.0,5.40002168]
[1772029657781,3.44764838,1977.9,1977.1,2.513]
[1772029658079,0.004,1977.9,1977.0,5.40002168]
[1772029658277,3.44892736,1977.9,1977.0,5.40002168]
[1772029658477,3.44892736,1977.8,1977.0,5.40002168]
[1772029658880,3.44892736,1977.7,1977.0,5.40002168]
[1772029659094,0.004,1977.9,1977.0,5.40002168]
[1772029659692,3.45027492,1977.9,1977.0,6.66451324]
[1772029660195,0.004,1977.8,1977.0,6.66451324]
[1772029660990,3.45257103,1977.8,1977.0,6.66451324]
[1772029662277,1.26809465,1977.7,1977.0,6.66451324]
[1772029662875,0.004,1977.6,1977.0,6.66451324]
[1772029663401,5.82250427,1978.0,1977.4,5.40002168]
[1772029664791,2.37182106,1978.0,1977.4,6.66430137]
[1772029664997,0.004,1977.9,1977.7,5.40002168]
[1772029665503,1.10787036,1978.0,1977.8,5.40002168]
[1772029665716,1.10787036,1978.0,1977.5,5.40002168]
[1772029666773,1.10787036,1978.0,1977.5,6.66421507]
[1772029667890,1.10787036,1978.0,1977.7,5.40002168]
[1772029668293,1.10787036,1978.0,1977.9,5.40002168]
[1772029668489,1.26343952,1978.8,1977.9,6.16820155]
[1772029668800,4.72263455,1978.6,1978.0,2.513]
[1772029669002,4.72263455,1978.6,1977.9,5.40002168]
[1772029669003,3.45911489,1978.5,1977.9,5.40002168]
[1772029669496,0.002,1978.0,1977.9,5.40002168]
[1772029669869,3.29871489,1978.5,1977.9,5.40002168]